fUSD/lending_fUSD_20240129
["ID","MTS","AMOUNT","RATE_DAILY","PERIOD"]
[312980274,1706562546885,930.60248392,0.00021643,2]
[312980275,1706562553082,2505.22567048,0.00021643,2]
[312980280,1706562582966,209.63,0.00020916,2]
[312980281,1706562583387,209.63,0.00020973,2]
[312980282,1706562583942,209.63,0.0002103,2]
[312980283,1706562584010,209.63,0.00021088,2]
[312980284,1706562584070,209.63,0.00021145,2]
[312980285,1706562584251,209.63,0.00021202,2]
[312980286,1706562584457,209.63,0.0002126,2]
[312980287,1706562584687,209.63,0.00021317,2]
[312980288,1706562584909,209.63,0.00021375,2]
[312980289,1706562585110,209.63,0.00021432,2]
[312980290,1706562585511,209.63,0.00021489,2]
[312980291,1706562585776,209.63,0.00021547,2]
[312980292,1706562586008,209.63,0.00021604,2]
[312980293,1706562586203,209.63,0.00021661,2]
[312980294,1706562586616,837.69093286,0.00021643,2]
[312980296,1706562605825,1000.0,0.00020749,2]
[312980297,1706562608505,272.55804949,0.00021596,2]
[312980300,1706562616244,2000.0,0.00020749,2]
[312980301,1706562623254,258.27246479,0.00021686,2]
[312980302,1706562623448,2509.52427026,0.00021596,2]
[312980324,1706562631850,-595.33605946,0.00021691,2]
[312980333,1706562631907,-499.6034895,0.00021691,2]
[312980335,1706562631919,-526.40835608,0.00021691,2]
[312980354,1706562632272,-1209.55348995,0.00021691,2]
[312980356,1706562632283,-292.16600001,0.00021691,2]
[312980358,1706562632294,-598.64497546,0.00021691,2]
[312980362,1706562632316,-1314.39513694,0.00021691,2]
[312980364,1706562632328,-923.39,0.00021691,2]
[312980370,1706562632376,1613.63104436,0.00021643,2]
[312980376,1706562632427,-2013.79999743,0.00021691,2]
[312980386,1706562637954,-537.465,0.00021691,2]
[312980387,1706562637967,-4941.83006226,0.00021691,2]
[312980388,1706562637978,-1084.61002449,0.00021691,2]
[312980389,1706562637987,-216.03758245,0.00021691,2]
[312980390,1706562637997,-2903.36861978,0.00021694,2]
[312980391,1706562638007,-4255.31741538,0.00021694,2]
[312980392,1706562638016,-201.90759892,0.00021695,2]
[312980393,1706562638026,-3020.30323365,0.00021695,2]
[312980394,1706562638035,-518.05824493,0.00021696,2]
[312980395,1706562638045,-418.25522566,0.00021696,2]
[312980396,1706562638055,-215.99572981,0.00021696,2]
[312980397,1706562638064,-117.14632493,0.00021696,2]
[312980398,1706562638124,-2224.97989414,0.00021696,2]
[312980399,1706562638136,-1056991.76450948,0.00021696,2]
[312980400,1706562638146,-284.1427715,0.00021696,2]
[312980401,1706562638155,-1000.0,0.00021696,2]
[312980402,1706562638167,-513.5366649,0.00021697,2]
[312980403,1706562638176,-493.45959145,0.00021697,2]
[312980404,1706562638185,-244.49381359,0.00021697,2]
[312980405,1706562638196,-549.66985152,0.00021697,2]
[312980406,1706562638205,-219.43998333,0.00021697,2]
[312980407,1706562638214,-195881.7353,0.00021697,2]
[312980408,1706562638224,-426.37,0.00021697,2]
[312980409,1706562638233,-1643.49617115,0.00021698,2]
[312980410,1706562638243,-1161.27089521,0.00021698,2]
[312980412,1706562638253,-999.99,0.00021698,2]
[312980414,1706562638262,-1007.8,0.00021698,2]
[312980416,1706562638271,-1632.45,0.00021698,2]
[312980419,1706562638281,-499.99,0.00021698,2]
[312980420,1706562638290,-751.99,0.00021698,2]
[312980421,1706562638300,-322.86,0.00021699,2]
[312980422,1706562638310,-83921.405,0.00021699,2]
[312980423,1706562638319,-215123.027,0.00021699,2]
[312980424,1706562638329,-5422.3655,0.00021699,2]
[312980425,1706562638339,-352.6615,0.00021699,2]
[312980426,1706562638348,-1217.926,0.00021699,2]
[312980427,1706562638358,-81661.2101,0.00021699,2]
[312980428,1706562638368,-4938.7382,0.00021699,2]
[312980431,1706562638377,-641.49341512,0.000217,2]
[312980434,1706562638386,-284.1427715,0.00021705,2]
[312980436,1706562638395,-11577.09231063,0.00021715,2]
[312980437,1706562638404,-284.1427715,0.00021715,2]
[312980438,1706562638414,-176.57840322,0.00021717,2]
[312980439,1706562638427,-209.63,0.00021719,2]
[312980440,1706562638438,-284.1427715,0.00021724,2]
[312980441,1706562638449,-284.1427715,0.00021734,2]
[312980442,1706562638460,-13410.35,0.00021734,2]
[312980443,1706562638470,-15220.51,0.00021734,2]
[312980444,1706562638481,-284.1427715,0.00021743,2]
[312980445,1706562638491,-284.1427715,0.00021753,2]
[312980446,1706562638502,-284.1427715,0.00021762,2]
[312980447,1706562638511,-284.1427715,0.00021772,2]
[312980448,1706562638521,-209.63,0.00021776,2]
[312980449,1706562638530,-2509.52427025,0.00021782,2]
[312980450,1706562638542,-258.27246479,0.00021787,2]
[312980451,1706562638551,-427.69474146,0.00021797,2]
[312980452,1706562638560,-228.71014256,0.00021797,2]
[312980453,1706562638570,-929.50886508,0.00021797,2]
[312980454,1706562638581,-156.43646517,0.00021797,2]
[312980455,1706562638591,-190.54461324,0.00021797,2]
[312980456,1706562638602,-156.70843451,0.00021797,2]
[312980457,1706562638611,-178.94185082,0.00021797,2]
[312980458,1706562638622,-302.67635463,0.00021797,2]
[312980459,1706562638632,-335.75552564,0.00021797,2]
[312980460,1706562638642,-261.17719989,0.00021797,2]
[312980461,1706562638652,-1141.43858445,0.00021797,2]
[312980462,1706562638661,-427.02443553,0.00021797,2]
[312980463,1706562638673,-157.35382223,0.00021797,2]
[312980464,1706562638683,-156.25595913,0.00021797,2]
[312980465,1706562638692,-1813.68084069,0.00021797,2]
[312980466,1706562638702,-412.5888739,0.00021797,2]
[312980467,1706562638711,-410.8508133,0.00021797,2]
[312980468,1706562638720,-161.10503934,0.00021797,2]
[312980469,1706562638729,-156.2918762,0.00021797,2]
[312980470,1706562638739,-157.81640261,0.00021797,2]
[312980471,1706562638748,-1244.35715284,0.00021797,2]
[312980472,1706562638757,-346.30115323,0.00021797,2]
[312980473,1706562638767,-1311.01209827,0.00021797,2]
[312980474,1706562638777,-155.3324332,0.00021797,2]
[312980475,1706562638786,-507.36267549,0.00021797,2]
[312980476,1706562638795,-1863.19236501,0.00021797,2]
[312980477,1706562638804,-158.32950144,0.00021797,2]
[312980478,1706562638814,-1066.91620343,0.00021797,2]
[312980479,1706562638823,-200.4169865,0.00021797,2]
[312980480,1706562638833,-277.17272826,0.00021797,2]
[312980481,1706562638842,-156.37062616,0.00021797,2]
[312980482,1706562638852,-156.1233509,0.00021797,2]
[312980483,1706562638862,-241.87504657,0.00021797,2]
[312980484,1706562638871,-155.26661927,0.00021797,2]
[312980485,1706562638881,-155.24946774,0.00021797,2]
[312980486,1706562638890,-226.87966989,0.00021797,2]
[312980487,1706562638900,-157.86817586,0.00021797,2]
[312980488,1706562638910,-1365.83587331,0.00021797,2]
[312980489,1706562638923,-155.93265211,0.00021797,2]
[312980490,1706562638932,-158.30384599,0.00021797,2]
[312980491,1706562638942,-383.76753435,0.00021797,2]
[312980492,1706562638951,-156.38195062,0.00021797,2]
[312980493,1706562638960,-206.73159676,0.00021797,2]
[312980494,1706562638971,-269.01579982,0.00021797,2]
[312980495,1706562638980,-155.86402743,0.00021797,2]
[312980496,1706562638990,-161.34600903,0.00021797,2]
[312980497,1706562638999,-155.73440965,0.00021797,2]
[312980498,1706562639010,-401.88899357,0.00021797,2]
[312980499,1706562639020,-160.02352615,0.00021797,2]
[312980500,1706562639029,-181.0436353,0.00021797,2]
[312980501,1706562639039,-155.44390996,0.00021797,2]
[312980502,1706562639050,-196.65971278,0.00021797,2]
[312980503,1706562639060,-155.19414547,0.00021797,2]
[312980504,1706562639070,-155.0,0.00021797,2]
[312980505,1706562639079,-155.3207105,0.00021797,2]
[312980506,1706562639089,-155.77332188,0.00021797,2]
[312980507,1706562639099,-285.22294561,0.00021797,2]
[312980508,1706562639109,-157.19362422,0.00021797,2]
[312980509,1706562639120,-156.62849969,0.00021797,2]
[312980510,1706562639129,-155.9432364,0.00021797,2]
[312980511,1706562639141,-324.53325712,0.00021797,2]
[312980512,1706562639151,-2545.01180366,0.00021797,2]
[312980513,1706562639162,-213.91996154,0.00021797,2]
[312980514,1706562639174,-475.44124884,0.00021797,2]
[312980515,1706562639184,-159.03735014,0.00021797,2]
[312980516,1706562639193,-336.99413276,0.00021797,2]
[312980517,1706562639203,-162.96938674,0.00021797,2]
[312980518,1706562639213,-155.0,0.00021797,2]
[312980519,1706562639223,-235.2545301,0.00021797,2]
[312980520,1706562639233,-669.93186281,0.00021797,2]
[312980521,1706562639247,-196.2404476,0.00021797,2]
[312980522,1706562639257,-500.0,0.00021797,2]
[312980523,1706562639267,-197.39376234,0.00021797,2]
[312980524,1706562639276,-337.6640189,0.00021797,2]
[312980525,1706562639285,-376.65343999,0.00021797,2]
[312980526,1706562639295,-3411.90530858,0.00021797,2]
[312980527,1706562639304,-241.11896855,0.00021797,2]
[312980528,1706562639313,-871.66828875,0.00021797,2]
[312980529,1706562639322,-212.07944382,0.00021797,2]
[312980530,1706562639332,-2324.38136054,0.00021797,2]
[312980531,1706562639341,-333.49163329,0.00021797,2]
[312980532,1706562639351,-163.79827886,0.00021797,2]
[312980533,1706562639360,-249.44582608,0.00021797,2]
[312980534,1706562639370,-2605.49270958,0.00021797,2]
[312980535,1706562639380,-156.49884071,0.00021797,2]
[312980536,1706562639389,-193.62669506,0.00021797,2]
[312980537,1706562639398,-500.0,0.00021797,2]
[312980538,1706562639407,-410.94296953,0.00021797,2]
[312980539,1706562639417,-2675.32851584,0.00021797,2]
[312980540,1706562639426,-155.0,0.00021797,2]
[312980541,1706562639435,-157.19234731,0.00021797,2]
[312980542,1706562639445,-187.14539073,0.00021797,2]
[312980543,1706562639455,-201.2269708,0.00021797,2]
[312980544,1706562639465,-3042.74399701,0.00021797,2]
[312980545,1706562639477,-181.65130825,0.00021797,2]
[312980546,1706562639487,-228.31643771,0.00021797,2]
[312980547,1706562639496,-507.63152252,0.00021797,2]
[312980548,1706562639506,-155.0,0.00021797,2]
[312980549,1706562639515,-155.0,0.00021797,2]
[312980550,1706562639524,-1943.3553205,0.00021797,2]
[312980552,1706562639768,-322.72479377,0.00021797,2]
[312980553,1706562639778,-318.39608403,0.00021797,2]
[312980554,1706562639788,-535.55044895,0.00021797,2]
[312980555,1706562639797,-384.9164604,0.00021797,2]
[312980556,1706562639807,-616.99470059,0.00021797,2]
[312980557,1706562639817,-759.81203869,0.00021797,2]
[312980558,1706562639827,-155.0,0.00021797,2]
[312980559,1706562639836,-4706.9627137,0.00021797,2]
[312980560,1706562639846,-1256.24889353,0.00021797,2]
[312980561,1706562639856,-354.42530625,0.00021797,2]
[312980562,1706562639866,-701.01986545,0.00021797,2]
[312980563,1706562639875,-155.51348707,0.00021797,2]
[312980564,1706562639885,-1835.16653807,0.00021797,2]
[312980565,1706562639894,-5211.21956191,0.00021797,2]
[312980566,1706562639903,-181.34205528,0.00021797,2]
[312980567,1706562639912,-327.35251651,0.00021797,2]
[312980568,1706562639923,-158.5204331,0.00021797,2]
[312980569,1706562639932,-269.20070026,0.00021797,2]
[312980570,1706562639942,-385.5449845,0.00021797,2]
[312980571,1706562639951,-1691.88156675,0.00021797,2]
[312980572,1706562639961,-3432.80188843,0.00021797,2]
[312980573,1706562639971,-713.9,0.00021797,2]
[312980574,1706562639981,-10100.08704134,0.00021797,2]
[312980575,1706562639990,-319.44822702,0.00021798,2]
[312980576,1706562639999,-164.34738147,0.00021798,2]
[312980577,1706562640009,-1000.0,0.000218,2]
[312980578,1706562640018,-210.0,0.000218,2]
[312980579,1706562640028,-245000.0,0.000218,2]
[312980580,1706562640038,-11577.09231063,0.00021833,2]
[312980581,1706562640047,-209.63,0.00021834,2]
[312980582,1706562640057,-150.0,0.00021842,2]
[312980583,1706562640066,-209.63,0.00021891,2]
[312980584,1706562640075,-176.69,0.00021893,2]
[312980585,1706562640085,-706.66529698,0.00021899,2]
[312980586,1706562640094,-500.0,0.00021918,2]
[312980587,1706562640103,-500.0,0.00021918,2]
[312980588,1706562640113,-500.0,0.00021918,2]
[312980589,1706562640123,-500.0,0.00021918,2]
[312980590,1706562640132,-500.0,0.00021918,2]
[312980591,1706562640142,-500.0,0.00021918,2]
[312980592,1706562640152,-500.0,0.00021918,2]
[312980593,1706562640162,-500.0,0.00021918,2]
[312980594,1706562640174,-500.0,0.00021918,2]
[312980595,1706562640183,-500.0,0.00021918,2]
[312980596,1706562640193,-500.0,0.00021918,2]
[312980597,1706562640202,-500.0,0.00021918,2]
[312980598,1706562640211,-500.0,0.00021918,2]
[312980599,1706562640221,-500.0,0.00021918,2]
[312980600,1706562640230,-500.0,0.00021918,2]
[312980601,1706562640240,-500.0,0.00021918,2]
[312980602,1706562640250,-500.0,0.00021918,2]
[312980603,1706562640260,-500.0,0.00021918,2]
[312980604,1706562640269,-500.0,0.00021918,2]
[312980605,1706562640279,-500.0,0.00021918,2]
[312980606,1706562640289,-500.0,0.00021918,2]
[312980607,1706562640298,-500.0,0.00021918,2]
[312980608,1706562640308,-500.0,0.00021918,2]
[312980610,1706562640317,-500.0,0.00021918,2]
[312980611,1706562640326,-500.0,0.00021918,2]
[312980612,1706562640336,-500.0,0.00021918,2]
[312980613,1706562640345,-500.0,0.00021918,2]
[312980614,1706562640354,-500.0,0.00021918,2]
[312980615,1706562640363,-500.0,0.00021918,2]
[312980617,1706562640373,-500.0,0.00021918,2]
[312980619,1706562640383,-509.13531976,0.00021918,2]
[312980621,1706562640393,-500.0,0.00021918,2]
[312980623,1706562640402,-500.0,0.00021918,2]
[312980626,1706562640410,-437.10596065,0.00021918,2]
[312980629,1706562640422,-500.0,0.00021918,2]
[312980631,1706562640431,-500.0,0.00021918,2]
[312980635,1706562640441,-500.0,0.00021918,2]
[312980638,1706562640451,-500.0,0.00021918,2]
[312980641,1706562640461,-500.0,0.00021918,2]
[312980644,1706562640470,-500.0,0.00021918,2]
[312980647,1706562640480,-500.0,0.00021918,2]
[312980650,1706562640490,-500.0,0.00021918,2]
[312980652,1706562640499,-500.0,0.00021918,2]
[312980654,1706562640509,-500.0,0.00021918,2]
[312980656,1706562640518,-500.0,0.00021918,2]
[312980658,1706562640528,-500.0,0.00021918,2]
[312980660,1706562640539,-500.0,0.00021918,2]
[312980663,1706562640551,-500.0,0.00021918,2]
[312980665,1706562640560,-500.0,0.00021918,2]
[312980667,1706562640569,-500.0,0.00021918,2]
[312980668,1706562640579,-500.0,0.00021918,2]
[312980671,1706562640589,-500.0,0.00021918,2]
[312980673,1706562640598,-500.0,0.00021918,2]
[312980675,1706562640608,-500.0,0.00021918,2]
[312980677,1706562640618,-500.0,0.00021918,2]
[312980679,1706562640628,-500.0,0.00021918,2]
[312980681,1706562640638,-500.0,0.00021918,2]
[312980682,1706562640647,-500.0,0.00021918,2]
[312980684,1706562640656,-500.0,0.00021918,2]
[312980687,1706562640667,-500.0,0.00021918,2]
[312980689,1706562640677,-500.0,0.00021918,2]
[312980691,1706562640686,-500.0,0.00021918,2]
[312980693,1706562640696,-500.0,0.00021918,2]
[312980695,1706562640706,-500.0,0.00021918,2]
[312980697,1706562640715,-500.0,0.00021918,2]
[312980699,1706562640725,-500.0,0.00021918,2]
[312980701,1706562640734,-500.0,0.00021918,2]
[312980703,1706562640744,-500.0,0.00021918,2]
[312980705,1706562640754,-655.89873841,0.00021918,2]
[312980707,1706562640763,-655.89873841,0.00021918,2]
[312980709,1706562640773,-655.89873841,0.00021918,2]
[312980711,1706562640783,-655.89873841,0.00021918,2]
[312980713,1706562640792,-655.89873841,0.00021918,2]
[312980715,1706562640802,-655.89873841,0.00021918,2]
[312980717,1706562640811,-655.89873841,0.00021918,2]
[312980719,1706562640820,-655.89873841,0.00021918,2]
[312980721,1706562640829,-655.89873841,0.00021918,2]
[312980723,1706562640838,-655.89873841,0.00021918,2]
[312980725,1706562640848,-655.89873841,0.00021918,2]
[312980727,1706562640858,-655.89873841,0.00021918,2]
[312980729,1706562640867,-655.89873841,0.00021918,2]
[312980731,1706562640877,-655.89873841,0.00021918,2]
[312980733,1706562640886,-655.89873841,0.00021918,2]
[312980734,1706562640895,-655.89873841,0.00021918,2]
[312980735,1706562640905,-655.89873841,0.00021918,2]
[312980736,1706562640914,-655.89873841,0.00021918,2]
[312980737,1706562640925,-655.89873841,0.00021918,2]
[312980738,1706562640934,-655.89873841,0.00021918,2]
[312980739,1706562640943,-655.89873841,0.00021918,2]
[312980740,1706562640953,-655.89873841,0.00021918,2]
[312980741,1706562640962,-655.89873841,0.00021918,2]
[312980742,1706562640971,-655.89873841,0.00021918,2]
[312980743,1706562640980,-655.89873841,0.00021918,2]
[312980744,1706562640989,-500.0,0.00021918,2]
[312980745,1706562640998,-655.89873841,0.00021918,2]
[312980746,1706562641008,-655.89873841,0.00021918,2]
[312980747,1706562641018,-655.89873841,0.00021918,2]
[312980748,1706562641028,-655.89873841,0.00021918,2]
[312980749,1706562641037,-655.89873841,0.00021918,2]
[312980750,1706562641046,-655.89873841,0.00021918,2]
[312980751,1706562641055,-655.89873841,0.00021918,2]
[312980752,1706562641064,-655.89873841,0.00021918,2]
[312980753,1706562641073,-655.89873841,0.00021918,2]
[312980754,1706562641082,-655.89873841,0.00021918,2]
[312980755,1706562641091,-655.89873841,0.00021918,2]
[312980756,1706562641100,-655.89873841,0.00021918,2]
[312980757,1706562641109,-655.89873841,0.00021918,2]
[312980758,1706562641118,-655.89873841,0.00021918,2]
[312980759,1706562641126,-655.89873841,0.00021918,2]
[312980760,1706562641135,-655.89873841,0.00021918,2]
[312980761,1706562641144,-655.89873841,0.00021918,2]
[312980762,1706562641153,-655.89873841,0.00021918,2]
[312980763,1706562641162,-655.89873841,0.00021918,2]
[312980764,1706562641171,-655.89873841,0.00021918,2]
[312980765,1706562641180,-668.39204768,0.00021918,2]
[312980766,1706562641190,-668.39204768,0.00021918,2]
[312980767,1706562641198,-668.39204768,0.00021918,2]
[312980768,1706562641207,-668.39204768,0.00021918,2]
[312980769,1706562641216,-668.39204768,0.00021918,2]
[312980770,1706562641225,-668.39204768,0.00021918,2]
[312980771,1706562641234,-668.39204768,0.00021918,2]
[312980772,1706562641243,-184.26069245,0.00021918,2]
[312980773,1706562641252,-500.0,0.00021918,2]
[312980774,1706562641261,-4641.48,0.00021918,2]
[312980775,1706562641271,-250.0,0.00021918,2]
[312980776,1706562641279,-737.54,0.00021918,2]
[312980777,1706562641288,-209.63,0.00021948,2]
[312980778,1706562641297,-11577.09231063,0.00021952,2]
[312980779,1706562641306,-2509.52427025,0.00021969,2]
[312980780,1706562641315,-641.49341509,0.00022,2]
[312980781,1706562641324,-2796.16067431,0.00022,2]
[312980782,1706562641333,-481.02562885,0.00022,2]
[312980783,1706562641342,-358.36,0.00022002,2]
[312980784,1706562641352,-209.63,0.00022006,2]
[312980785,1706562641361,-11577.09231063,0.0002207,2]
[312980786,1706562641370,-610.1459295,0.000221,5]
[312980787,1706562641380,-150.0,0.00022125,2]
[312980788,1706562641389,-11577.09231063,0.00022189,2]
[312980789,1706562641398,-272.55804948,0.00022248,2]
[312980790,1706562641407,-241.42137814,0.00022272,2]
[312980791,1706562641416,-930.6024839,0.00022272,2]
[312980792,1706562641425,-837.69093284,0.00022272,2]
[312980793,1706562641435,-1613.63104436,0.00022272,2]
[312980794,1706562641444,-641.49341509,0.000223,2]
[312980795,1706562641453,-11577.09231063,0.00022307,2]
[312980796,1706562641462,-154.19383368,0.00022389,2]
[312980797,1706562641471,-11577.09231063,0.00022426,2]
[312980798,1706562641480,-176.69,0.00022441,2]
[312980799,1706562641490,-1246.31,0.00022443,2]
[312980800,1706562641499,-11577.09231063,0.00022544,2]
[312980801,1706562641508,-641.49341509,0.000226,2]
[312980802,1706562641517,-155.0,0.0002261,2]
[312980803,1706562641527,-11577.09231063,0.00022663,2]
[312980804,1706562641539,-11577.09231063,0.00022781,2]
[312980805,1706562641551,-230.3,0.00022782,2]
[312980806,1706562641560,-540.2857,0.00022799,2]
[312980807,1706562641569,-300.0,0.00022899,2]
[312980808,1706562641578,-300.0,0.00022899,2]
[312980809,1706562641588,-300.0,0.00022899,2]
[312980810,1706562641598,-404.55799692,0.00022899,2]
[312980811,1706562641607,-129656.51217511,0.000229,2]
[312980812,1706562641617,-302941.15089605,0.000229,2]
[312980813,1706562641627,-641.49341509,0.000229,2]
[312980814,1706562641636,-156.1745253,0.000229,2]
[312980815,1706562641646,-11577.09231063,0.000229,2]
[312980816,1706562641655,-241.42137814,0.000229,2]
[312980817,1706562641663,-930.6024839,0.000229,2]
[312980818,1706562641673,-2505.22567048,0.000229,2]
[312980819,1706562641682,-837.69093284,0.000229,2]
[312980820,1706562641691,-272.55804948,0.000229,2]
[312980821,1706562641700,-176.69,0.00022989,2]
[312980822,1706562641709,-258.27246479,0.0002299,2]
[312980823,1706562641719,-202.0,0.00022999,2]
[312980824,1706562641728,-500.0,0.00022999,2]
[312980825,1706562641737,-500.0,0.00022999,2]
[312980826,1706562641746,-500.0,0.00022999,2]
[312980827,1706562641756,-500.0,0.00022999,2]
[312980828,1706562641765,-500.0,0.00022999,2]
[312980829,1706562641774,-500.0,0.00022999,2]
[312980830,1706562641783,-500.0,0.00022999,2]
[312980831,1706562641792,-500.0,0.00022999,2]
[312980832,1706562641801,-500.0,0.00022999,2]
[312980833,1706562641810,-500.0,0.00022999,2]
[312980834,1706562641819,-500.0,0.00022999,2]
[312980835,1706562641828,-500.0,0.00022999,2]
[312980836,1706562641837,-500.0,0.00022999,2]
[312980837,1706562641846,-500.0,0.00022999,2]
[312980838,1706562641855,-500.0,0.00022999,2]
[312980839,1706562641865,-364.94453712,0.00022999,2]
[312980840,1706562641874,-500.0,0.00022999,2]
[312980841,1706562641883,-500.0,0.00022999,2]
[312980842,1706562641891,-500.0,0.00022999,2]
[312980843,1706562641901,-181.30356702,0.00022999,2]
[312980844,1706562641909,-500.0,0.00022999,2]
[312980845,1706562641918,-500.0,0.00022999,2]
[312980846,1706562641927,-500.0,0.00022999,2]
[312980847,1706562641936,-500.0,0.00022999,2]
[312980848,1706562641945,-500.0,0.00022999,2]
[312980849,1706562641954,-500.0,0.00022999,2]
[312980850,1706562641963,-500.0,0.00022999,2]
[312980851,1706562641972,-500.0,0.00022999,2]
[312980852,1706562641981,-500.0,0.00022999,2]
[312980853,1706562641990,-500.0,0.00022999,2]
[312980854,1706562641998,-440.31922413,0.00022999,2]
[312980855,1706562642007,-500.0,0.00022999,2]
[312980856,1706562642016,-500.0,0.00022999,2]
[312980857,1706562642025,-500.0,0.00022999,2]
[312980858,1706562642034,-500.0,0.00022999,2]
[312980859,1706562642043,-500.0,0.00022999,2]
[312980860,1706562642052,-500.0,0.00022999,2]
[312980861,1706562642061,-631.2498602,0.00022999,2]
[312980862,1706562642070,-500.0,0.00022999,2]
[312980863,1706562642079,-500.0,0.00022999,2]
[312980864,1706562642088,-500.0,0.00022999,2]
[312980865,1706562642097,-500.0,0.00022999,2]
[312980866,1706562642105,-500.0,0.00022999,2]
[312980867,1706562642114,-500.0,0.00022999,2]
[312980868,1706562642123,-500.0,0.00022999,2]
[312980869,1706562642132,-500.0,0.00022999,2]
[312980870,1706562642141,-500.0,0.00022999,2]
[312980871,1706562642150,-500.0,0.00022999,2]
[312980872,1706562642159,-500.0,0.00022999,2]
[312980873,1706562642168,-500.0,0.00022999,2]
[312980874,1706562642177,-500.0,0.00022999,2]
[312980875,1706562642186,-585.05618582,0.00022999,2]
[312980876,1706562642195,-500.0,0.00022999,2]
[312980877,1706562642205,-500.0,0.00022999,2]
[312980878,1706562642214,-500.0,0.00022999,2]
[312980879,1706562642223,-500.0,0.00022999,2]
[312980880,1706562642231,-500.0,0.00022999,2]
[312980881,1706562642240,-500.0,0.00022999,2]
[312980882,1706562642249,-500.0,0.00022999,2]
[312980883,1706562642258,-500.0,0.00022999,2]
[312980884,1706562642268,-500.0,0.00022999,2]
[312980885,1706562642277,-500.0,0.00022999,2]
[312980886,1706562642285,-500.0,0.00022999,2]
[312980887,1706562642294,-500.0,0.00022999,2]
[312980888,1706562642305,-500.0,0.00022999,2]
[312980889,1706562642317,-500.0,0.00022999,2]
[312980890,1706562642326,-500.0,0.00022999,2]
[312980891,1706562642336,-500.0,0.00022999,2]
[312980892,1706562642346,-529.473455,0.00022999,2]
[312980893,1706562642356,-500.0,0.00022999,2]
[312980894,1706562642366,-500.0,0.00022999,2]
[312980895,1706562642376,-500.0,0.00022999,2]
[312980896,1706562642385,-500.0,0.00022999,2]
[312980897,1706562642395,-500.0,0.00022999,2]
[312980898,1706562642406,-500.0,0.00022999,2]
[312980899,1706562642416,-500.0,0.00022999,2]
[312980900,1706562642426,-500.0,0.00022999,2]
[312980901,1706562642436,-500.0,0.00022999,2]
[312980902,1706562642446,-352.98667443,0.00022999,2]
[312980903,1706562642456,-500.0,0.00022999,2]
[312980904,1706562642468,-500.0,0.00022999,2]
[312980905,1706562642479,-500.0,0.00022999,2]
[312980906,1706562642488,-500.0,0.00022999,2]
[312980907,1706562642498,-500.0,0.00022999,2]
[312980908,1706562642508,-351.53725328,0.00022999,2]
[312980909,1706562642517,-330.0,0.00022999,2]
[312980910,1706562642526,-500.0,0.00022999,2]
[312980911,1706562642536,-500.0,0.00022999,2]
[312980912,1706562642548,-500.0,0.00022999,2]
[312980913,1706562642557,-500.0,0.00022999,2]
[312980914,1706562642567,-647.00118582,0.00022999,2]
[312980915,1706562642577,-500.0,0.00022999,2]
[312980916,1706562642587,-500.0,0.00022999,2]
[312980917,1706562642597,-500.0,0.00022999,2]
[312980918,1706562642607,-500.0,0.00022999,2]
[312980919,1706562642616,-500.0,0.00022999,2]
[312980920,1706562642627,-500.0,0.00022999,2]
[312980922,1706562642637,-500.0,0.00022999,2]
[312980923,1706562642647,-500.0,0.00022999,2]
[312980925,1706562642656,-500.0,0.00022999,2]
[312980927,1706562642665,-500.0,0.00022999,2]
[312980928,1706562642675,-500.0,0.00022999,2]
[312980929,1706562642685,-500.0,0.00022999,2]
[312980930,1706562642694,-500.0,0.00022999,2]
[312980932,1706562642704,-500.0,0.00022999,2]
[312980934,1706562642714,-500.0,0.00022999,2]